bitfinex/quotes_BTCUSD_20251104
["timestamp","ask_amount","ask_price","bid_price","bid_amount"]
[1762235159824,2.78643874,105010.0,105000.0,30.47609471]
[1762235160067,2.78643874,105010.0,105000.0,30.01993021]
[1762235160311,2.77643875,105010.0,105000.0,29.4988262]
[1762235160540,2.58559058,105010.0,105000.0,29.4988262]
[1762235160773,2.59559057,105010.0,105000.0,29.05281093]
[1762235161010,2.59559057,105010.0,105000.0,25.92803514]
[1762235161011,0.81559056,105010.0,105000.0,25.92803514]
[1762235161250,2.87342926,105010.0,105000.0,22.73703582]
[1762235161467,2.65342927,105010.0,105000.0,22.63385827]
[1762235161691,2.65342927,105010.0,105000.0,22.60522285]
[1762235161692,2.63342929,105010.0,105000.0,22.60522285]
[1762235161947,2.05513253,105010.0,105000.0,22.60522285]
[1762235162161,2.20792375,105010.0,105000.0,22.60522285]
[1762235162382,2.47576244,105010.0,105000.0,22.60522285]
[1762235162609,2.49566509,105010.0,105000.0,22.1169594]
[1762235162826,2.48632469,105010.0,105000.0,22.1167231]
[1762235163050,2.48632469,105010.0,105000.0,21.87909537]
[1762235163051,2.4856651,105010.0,105000.0,21.87909537]
[1762235163265,2.01736836,105010.0,105000.0,21.87909537]
[1762235163481,2.00048499,105010.0,105000.0,21.87909537]
[1762235163703,2.21048498,105010.0,105000.0,21.87909537]
[1762235163937,2.80878173,105010.0,105000.0,21.87909537]
[1762235164163,2.82563373,105010.0,105000.0,21.87909537]
[1762235164594,2.82563373,105010.0,105000.0,21.4922237]
[1762235164804,2.82563373,105010.0,105000.0,20.72842036]
[1762235165014,2.82563373,105010.0,105000.0,20.7310302]
[1762235165224,2.82534805,105010.0,105000.0,20.7310302]
[1762235165437,2.80849605,105010.0,105000.0,20.7210302]
[1762235166376,2.39065736,105010.0,105000.0,20.7210302]
[1762235166601,2.60065735,105010.0,105000.0,20.7210302]
[1762235167496,2.99849606,105010.0,105000.0,20.7210302]
[1762235167741,2.95065735,105010.0,105000.0,20.7210302]
[1762235167947,2.96065734,105010.0,105000.0,20.7210302]
[1762235168405,2.95065735,105010.0,105000.0,20.7210302]
[1762235168630,2.95065735,105010.0,105000.0,20.6730738]
[1762235168856,3.00849605,105010.0,105000.0,20.6730738]
[1762235170005,2.96065734,105010.0,105000.0,20.6730738]
[1762235170230,3.00849605,105010.0,105000.0,20.6730738]
[1762235170453,2.99849606,105010.0,105000.0,20.6730738]
[1762235170679,2.82161477,105010.0,105000.0,20.6730738]
[1762235170909,2.83161476,105010.0,105000.0,20.6730738]
[1762235171125,2.23331801,105010.0,105000.0,20.6730738]
[1762235171340,0.20942182,105030.0,105000.0,20.6730738]
[1762235171341,0.209,105030.0,105000.0,20.6730738]
[1762235171554,0.00999999,105010.0,105000.0,20.67055612]
[1762235172463,0.00094367,105020.0,105000.0,20.76170612]
[1762235172696,0.00999999,105010.0,105000.0,20.67055612]
[1762235173835,0.00999999,105010.0,105000.0,20.76170612]
[1762235174058,0.00999999,105030.0,105000.0,20.76170612]
[1762235174283,0.00999999,105040.0,105010.0,0.1564058]
[1762235174502,0.00999999,105040.0,105010.0,0.13736]
[1762235174925,0.00999999,105030.0,105010.0,0.13736]
[1762235175136,0.01094366,105030.0,105010.0,0.13736]
[1762235175354,0.00999999,105030.0,105010.0,0.13736]
[1762235175577,0.34999999,105040.0,105020.0,0.11245399]
[1762235175803,0.00999999,105040.0,105020.0,0.11096699]
[1762235176042,0.00999999,105060.0,105030.0,0.01904217]
[1762235176261,0.00999999,105050.0,105020.0,0.091923]
[1762235176692,0.00999999,105040.0,105020.0,0.09405792]
[1762235176918,0.00999999,105040.0,105020.0,0.091923]
[1762235177144,0.00999999,105040.0,105030.0,0.00189753]
[1762235178283,0.34999999,105040.0,105030.0,0.00189753]
[1762235178760,2.54647364,105040.0,105030.0,0.00189753]
[1762235179427,0.00999999,105010.0,105000.0,20.66377976]
[1762235179647,2.54140171,105010.0,105000.0,20.66377976]
[1762235179861,2.54652804,105010.0,105000.0,20.66377976]
[1762235180091,2.34999999,105010.0,105000.0,20.66377976]
[1762235180307,0.34999999,105010.0,105000.0,20.66377976]
[1762235180525,0.34999999,105010.0,105000.0,20.75718976]
[1762235180526,0.34,105010.0,105000.0,20.75718976]
[1762235180756,0.34,105010.0,105000.0,20.66377976]
[1762235181459,0.34999999,105010.0,105000.0,20.66377976]
[1762235181913,2.34999999,105010.0,105000.0,20.66377976]
[1762235182191,0.34999999,105010.0,105000.0,20.66377976]
[1762235182403,0.34,105010.0,105000.0,20.75718976]
[1762235183750,0.34999999,105010.0,105000.0,20.75718976]
[1762235183988,0.34999999,105010.0,105000.0,20.66377976]
[1762235184202,0.54045804,105010.0,105000.0,20.66377976]
[1762235184412,2.59436675,105010.0,105000.0,20.66377976]
[1762235184636,2.5634963,105010.0,105000.0,20.65177976]
[1762235184845,2.61133501,105010.0,105000.0,20.65177976]
[1762235185062,2.61133501,105010.0,105000.0,20.6524918]
[1762235185063,2.5634963,105010.0,105000.0,20.6524918]
[1762235185305,2.61133501,105010.0,105000.0,20.6524918]
[1762235185519,2.61133501,105010.0,105000.0,20.64816391]
[1762235185732,2.57802228,105010.0,105000.0,20.64682561]
[1762235185959,2.55349631,105010.0,105000.0,20.64682561]
[1762235186173,2.37303825,105010.0,105000.0,20.64682561]
[1762235186384,2.57844193,105010.0,105000.0,20.64682561]
[1762235186615,2.37303825,105010.0,105000.0,20.64682561]
[1762235186827,2.57844143,105010.0,105000.0,20.64682561]
[1762235187664,2.57815575,105010.0,105000.0,20.64682561]
[1762235188127,2.77815575,105010.0,105000.0,20.5436854]
[1762235188789,2.77815575,105010.0,105000.0,17.54751026]
[1762235188790,0.85097903,105010.0,105000.0,17.54751026]
[1762235189014,0.85210785,105010.0,105000.0,17.54751026]
[1762235189245,2.85097903,105010.0,105000.0,17.54751026]
[1762235189688,2.78314033,105010.0,105000.0,17.54751026]
[1762235190135,2.44342601,105010.0,105000.0,17.54751026]
[1762235190352,2.49126472,105010.0,105000.0,17.54751026]
[1762235190569,2.83126472,105010.0,105000.0,17.54751026]
[1762235190801,2.25296796,105010.0,105000.0,17.54751026]
[1762235191025,2.04798338,105010.0,105000.0,17.54751026]
[1762235191261,2.04191338,105010.0,105000.0,17.54751026]
[1762235191499,2.19816485,105010.0,105000.0,17.54751026]
[1762235191725,2.2131208,105010.0,105000.0,17.54751026]
[1762235192005,1.8670508,105010.0,105000.0,17.54751026]
[1762235192217,1.85705081,105010.0,105000.0,17.54751026]
[1762235192434,1.8670508,105010.0,105000.0,17.54751026]
[1762235193283,1.85705081,105010.0,105000.0,17.54751026]
[1762235193519,1.84209486,105010.0,105000.0,17.64230026]
[1762235193743,1.85209485,105020.0,105000.0,17.64230026]
[1762235193959,1.84209486,105010.0,105000.0,17.54679822]
[1762235194403,2.18209486,105010.0,105000.0,17.54679822]
[1762235194607,2.19209485,105010.0,105000.0,17.54679822]
[1762235195469,2.19209485,105010.0,105000.0,17.54366688]
[1762235195756,2.20704871,105010.0,105000.0,17.54246241]
[1762235196266,0.35495386,105010.0,105000.0,17.63725241]
[1762235196521,0.01495386,105010.0,105000.0,17.63725241]
[1762235196769,2.01495386,105010.0,105000.0,17.54246241]
[1762235197042,2.02495385,105010.0,105000.0,17.54246241]
[1762235197269,0.35495386,105010.0,105000.0,17.63725241]
[1762235199464,0.21494207,105070.0,105010.0,0.00047465]
[1762235199465,2.0,105060.0,105010.0,0.00047465]
[1762235199727,0.2,105080.0,105040.0,0.04743]
[1762235199728,2.35094366,105050.0,105040.0,0.04743]
[1762235199955,2.00999999,105050.0,105040.0,0.04743]
[1762235200173,0.42630012,105080.0,105030.0,0.04743]
[1762235200174,2.34999999,105040.0,105030.0,0.04743]
[1762235200607,2.35163702,105040.0,105030.0,0.04743]
[1762235200851,2.34,105030.0,105020.0,0.0002373]
[1762235201089,2.34999999,105030.0,105020.0,0.00032946]
[1762235201330,2.37101999,105030.0,105020.0,0.00032946]
[1762235201557,2.56144177,105030.0,105020.0,0.00032946]
[1762235202230,2.34999999,105030.0,105020.0,3.106e-05]
[1762235202453,2.34,105030.0,105020.0,3.106e-05]
[1762235202665,2.34,105030.0,105020.0,0.09482106]
[1762235203315,2.34999999,105030.0,105020.0,3.106e-05]
[1762235203540,2.36714854,105030.0,105020.0,3.106e-05]
[1762235203760,2.35714855,105030.0,105020.0,3.106e-05]
[1762235203981,2.36714854,105030.0,105020.0,3.106e-05]
[1762235204822,2.36714768,105030.0,105020.0,3.106e-05]
[1762235205264,2.57858946,105030.0,105020.0,3.106e-05]
[1762235205486,2.36714768,105030.0,105000.0,17.53777373]
[1762235205711,2.0,105010.0,105000.0,17.53678186]
[1762235205941,0.34,105010.0,105000.0,17.53678186]
[1762235206389,0.34,105010.0,105000.0,17.63203186]
[1762235207594,0.2,105060.0,105000.0,17.63203186]
[1762235207595,2.0,105040.0,105000.0,17.63203186]
[1762235207819,0.0171647,105040.0,105010.0,0.1142958]
[1762235208046,0.0171647,105040.0,105020.0,0.01904399]
[1762235208262,2.0,105070.0,105020.0,0.01904399]
[1762235208486,2.01716061,105070.0,105060.0,0.04816]
[1762235209399,0.01716061,105070.0,105060.0,0.14341]
[1762235209616,0.01716061,105070.0,105060.0,0.14350215]
[1762235209829,0.01716061,105070.0,105060.0,0.13374594]
[1762235210067,2.0271606,105070.0,105060.0,0.03849594]
[1762235210549,2.0271606,105070.0,105060.0,0.13374594]
[1762235210550,1.75797352,105070.0,105060.0,0.13374594]
[1762235210767,0.00913156,105140.0,105060.0,0.13374594]
[1762235210978,1.719356,105130.0,105100.0,0.03012]
[1762235211417,0.00229735,105100.0,105090.0,0.03012]
[1762235211624,1.72165335,105100.0,105090.0,0.03012]
[1762235211838,0.00229735,105100.0,105090.0,0.12537]
[1762235212259,0.00229735,105100.0,105090.0,0.12546215]
[1762235213752,0.00229735,105100.0,105090.0,0.16164443]
[1762235214241,0.00229735,105100.0,105090.0,0.1999443]
[1762235214463,0.00229735,105100.0,105090.0,0.39025736]
[1762235214674,0.00229735,105100.0,105090.0,0.18164441]
[1762235214883,0.00229735,105100.0,105090.0,0.47616362]
[1762235215091,0.025,105120.0,105110.0,0.05618226]
[1762235215318,0.025,105120.0,105110.0,0.20541034]
[1762235215531,0.025,105120.0,105110.0,0.28476711]
[1762235216807,0.025,105120.0,105110.0,0.47504396]
[1762235217235,0.02547396,105120.0,105110.0,0.48504395]
[1762235217445,0.02547396,105120.0,105110.0,0.28476711]
[1762235217862,0.02547396,105120.0,105110.0,0.47504396]
[1762235218304,0.02547396,105120.0,105110.0,0.28476711]
[1762235218514,0.02547396,105120.0,105110.0,0.47504396]
[1762235219816,0.0254,105150.0,105140.0,0.05618226]
[1762235220029,0.0254,105150.0,105140.0,0.03618228]
[1762235220286,0.0254,105150.0,105140.0,0.13143228]
[1762235221203,0.02588564,105150.0,105130.0,0.04816]
[1762235221428,0.02588564,105150.0,105140.0,0.09525]
[1762235221661,0.02588564,105150.0,105130.0,0.04816]
[1762235221878,0.36547396,105140.0,105130.0,0.14341]
[1762235222810,0.34,105140.0,105130.0,0.14341]
[1762235223003,0.02588564,105150.0,105130.0,0.14341]
[1762235223226,0.02588564,105150.0,105140.0,0.11427225]
[1762235223451,0.02588564,105150.0,105140.0,0.09525]
[1762235224145,0.02588564,105150.0,105130.0,0.04816]
[1762235224146,0.34,105140.0,105130.0,0.04816]
[1762235224846,1.719356,105130.0,105120.0,0.09525]
[1762235225064,0.02588564,105150.0,105130.0,0.04816]
[1762235225278,0.34,105140.0,105130.0,0.04816]
[1762235225497,0.34,105140.0,105130.0,0.14341]
[1762235225731,0.02659631,105150.0,105140.0,4.66]
[1762235225732,0.02588564,105150.0,105140.0,4.66]
[1762235225987,1.74524164,105150.0,105140.0,4.66]
[1762235226425,1.9354461,105150.0,105140.0,4.66]
[1762235227737,2.2754461,105150.0,105140.0,4.66]
[1762235228194,2.34817039,105150.0,105140.0,3.85167604]
[1762235228410,2.28042361,105150.0,105140.0,3.85167604]
[1762235228636,2.2754461,105150.0,105140.0,3.84214604]
[1762235229957,1.74524164,105150.0,105140.0,3.84214604]
[1762235230387,1.9354461,105150.0,105140.0,3.84214604]
[1762235230616,2.08524164,105150.0,105140.0,3.84214604]
[1762235230831,2.2754461,105150.0,105140.0,3.84214604]
[1762235231273,2.48042317,105150.0,105140.0,3.84214604]
[1762235231485,2.58993996,105150.0,105140.0,3.84214604]
[1762235231713,2.54290383,105150.0,105140.0,3.84214604]
[1762235231922,2.79065063,105150.0,105140.0,3.84214604]
[1762235232344,2.80065062,105150.0,105140.0,3.84214604]
[1762235232775,2.80065062,105150.0,105140.0,2.89980336]
[1762235232993,2.80065062,105150.0,105140.0,2.61674251]
[1762235233248,2.80065062,105150.0,105140.0,2.41940909]
[1762235233477,0.38350501,105020.0,105010.0,0.13333485]
[1762235233706,0.34,105060.0,105000.0,17.53668971]
[1762235233707,1.74017016,105010.0,105000.0,17.55668969]
[1762235233942,2.0,105080.0,105010.0,0.08517485]
[1762235234174,0.34,105070.0,105020.0,0.00999999]
[1762235234383,0.34,105070.0,105030.0,0.01904217]
[1762235234598,0.34,105070.0,105030.0,0.01913432]
[1762235234810,0.34,105080.0,105030.0,0.01913432]
[1762235235035,0.34,105060.0,105030.0,0.01913432]
[1762235235482,0.34,105060.0,105040.0,0.03082]
[1762235237467,2.0,105070.0,105040.0,0.03082]
[1762235238109,2.0,105070.0,105060.0,0.03082]
[1762235238353,0.01494306,105080.0,105060.0,0.03082]
[1762235238582,0.01494306,105080.0,105060.0,0.07435163]
[1762235238809,0.13422485,105110.0,105070.0,0.03082]
[1762235239035,0.10241216,105110.0,105100.0,0.03082]
[1762235239264,0.01723731,105110.0,105100.0,0.03082]
[1762235239514,0.01723731,105110.0,105100.0,0.06164]
[1762235239515,0.00229705,105110.0,105100.0,0.06164]
[1762235239952,0.00229705,105110.0,105100.0,0.06173215]
[1762235240639,0.08517485,105130.0,105100.0,0.06173215]
[1762235240640,0.08517485,105130.0,105100.0,0.10791442]
[1762235240860,0.0254,105150.0,105110.0,0.08602996]
[1762235241072,2.0,105140.0,105110.0,0.08602996]
[1762235241281,0.00023697,105120.0,105110.0,0.05520996]
[1762235241739,0.0254,105150.0,105130.0,0.03618228]
[1762235241952,0.0254,105150.0,105120.0,0.03082]
[1762235241953,0.3654,105150.0,105120.0,0.03082]
[1762235242176,2.0,105140.0,105120.0,0.03082]
[1762235242390,2.00047382,105140.0,105120.0,0.03082]
[1762235242609,2.0,105140.0,105120.0,0.03082]
[1762235242832,0.34,105130.0,105100.0,0.03091215]
[1762235243044,0.34,105130.0,105100.0,0.06173215]
[1762235243563,2.38792,105110.0,105100.0,9.215e-05]
[1762235243987,2.47899,105110.0,105100.0,9.215e-05]
[1762235245782,2.66926685,105110.0,105100.0,9.215e-05]
[1762235245994,2.47899,105110.0,105100.0,9.215e-05]
[1762235247339,2.38792,105110.0,105100.0,9.215e-05]
[1762235247818,2.47899,105110.0,105100.0,9.215e-05]
[1762235248716,2.0,105120.0,105100.0,9.215e-05]
[1762235248935,0.04792,105110.0,105100.0,9.215e-05]
[1762235249145,2.13899,105110.0,105100.0,9.215e-05]
[1762235249354,2.32926685,105110.0,105100.0,9.215e-05]
[1762235249995,2.0,105080.0,105060.0,0.03091]
[1762235250201,2.0,105070.0,105060.0,0.03105916]
[1762235250639,0.09003,105070.0,105060.0,0.00014916]
[1762235250858,0.08517485,105070.0,105060.0,0.00014916]
[1762235251505,0.42517485,105070.0,105060.0,0.00014916]
[1762235251753,2.51520485,105070.0,105060.0,0.00014916]
[1762235252414,2.70555414,105070.0,105060.0,0.00014916]
[1762235252621,0.34,105040.0,105030.0,0.00253499]
[1762235252829,0.34,105040.0,105030.0,0.00268401]
[1762235253043,2.43003,105040.0,105030.0,0.00268401]
[1762235253257,2.41003,105040.0,105030.0,0.00268401]
[1762235254146,2.61003,105040.0,105030.0,0.00268401]
[1762235254788,2.61403,105040.0,105030.0,0.00268401]
[1762235255234,2.61003,105040.0,105030.0,0.00268401]
[1762235255437,2.42103,105040.0,105030.0,0.00368401]
[1762235256084,2.32,105040.0,105030.0,0.00268401]
[1762235256284,2.32,105040.0,105030.0,0.00368401]
[1762235256285,2.34199688,105040.0,105030.0,0.00368401]
[1762235256488,2.43202688,105040.0,105030.0,0.00368401]
[1762235256696,2.34199688,105040.0,105030.0,0.00368401]
[1762235256915,2.43202688,105040.0,105030.0,0.00368401]
[1762235257124,2.63202688,105040.0,105030.0,0.00368401]
[1762235257551,2.62102688,105040.0,105030.0,0.00268401]
[1762235257751,2.68254688,105040.0,105030.0,0.00268401]
[1762235257957,2.40251688,105040.0,105030.0,0.00368401]
[1762235258180,2.49254688,105040.0,105030.0,0.00368401]
[1762235258392,2.87295053,105040.0,105030.0,0.00268401]
[1762235258882,3.08095053,105040.0,105030.0,0.00368401]
[1762235259293,3.08095053,105040.0,105030.0,0.00268401]
[1762235259294,3.07295053,105040.0,105030.0,0.00268401]
[1762235259532,3.08295053,105040.0,105030.0,0.00368401]
[1762235259747,3.08295053,105040.0,105000.0,15.79651955]
[1762235259748,2.0,105010.0,105000.0,15.79651955]
[1762235259956,2.16325,105010.0,105000.0,15.79666845]
[1762235260384,0.0117,105010.0,105000.0,15.79666845]
[1762235260588,2.0,105010.0,105000.0,15.79666845]
[1762235261214,0.0491,105020.0,105000.0,15.79666845]
[1762235261435,0.0491,105030.0,105000.0,15.79766845]
[1762235262265,0.0491,105030.0,105000.0,15.79666845]
[1762235262478,0.002,105020.0,105010.0,0.0190458]
[1762235262702,0.002,105020.0,105010.0,0.03107]
[1762235262917,0.002,105020.0,105010.0,0.0811858]
[1762235263128,0.002,105020.0,105010.0,0.06214]
[1762235263750,10.0,105030.0,105010.0,0.06214]
[1762235263972,10.006,105030.0,105020.0,0.03107]
[1762235264403,10.006,105030.0,105010.0,0.03107]
[1762235264621,0.34,105020.0,105000.0,15.79666845]
[1762235264830,0.341,105020.0,105010.0,0.03507]
[1762235265039,0.341,105020.0,105010.0,0.06614]
[1762235265270,0.34,105020.0,105010.0,0.06214]
[1762235265715,0.34,105020.0,105010.0,0.06414]
[1762235265905,10.001,105030.0,105010.0,0.06414]
[1762235266555,0.34,105020.0,105010.0,0.06414]
[1762235266777,0.34,105020.0,105000.0,15.72973845]
[1762235267425,0.34,105020.0,105010.0,0.0190458]
[1762235267634,0.34,105020.0,105000.0,15.72973845]
[1762235267840,0.34,105020.0,105010.0,0.001]
[1762235268247,0.34,105020.0,105000.0,15.72973845]
[1762235268454,10.0,105030.0,105000.0,15.72973845]
[1762235268668,0.34,105020.0,105010.0,0.001]
[1762235269123,0.34,105020.0,105000.0,15.72973845]
[1762235269530,0.34,105020.0,105000.0,15.72952912]
[1762235270145,0.35494078,105020.0,105000.0,15.72952912]
[1762235270581,0.35494078,105020.0,105010.0,0.00047465]
[1762235271027,0.35794078,105020.0,105010.0,0.00047465]
[1762235271443,0.01494078,105020.0,105010.0,0.00047465]
[1762235273482,10.0,105030.0,105010.0,0.01952045]
[1762235273702,9.79946463,105030.0,105010.0,0.0190458]
[1762235274101,9.79446463,105030.0,105010.0,0.0200458]
[1762235274456,9.77952465,105030.0,105020.0,0.03618228]
[1762235274654,9.02804465,105030.0,105020.0,0.03618228]
[1762235275849,9.02804465,105030.0,105020.0,0.04718227]
[1762235276267,9.02804465,105030.0,105020.0,0.06622626]
[1762235276734,9.02804465,105030.0,105020.0,0.07622625]
[1762235276951,9.02804465,105030.0,105020.0,0.07522625]
[1762235277184,9.02804465,105030.0,105020.0,0.37086616]
[1762235277185,9.02904465,105030.0,105020.0,0.37086616]
[1762235277400,9.02904465,105030.0,105020.0,0.35182217]
[1762235277665,9.00900248,105030.0,105020.0,0.69682216]
[1762235277877,8.93306255,105030.0,105020.0,0.69682216]
[1762235278110,8.86271529,105030.0,105020.0,0.70382216]
[1762235278330,8.59710718,105030.0,105020.0,0.70382216]
[1762235278560,7.89274467,105030.0,105020.0,0.69682216]
[1762235278763,7.81530647,105030.0,105020.0,0.69682216]
[1762235278971,7.64649469,105030.0,105020.0,0.71105947]
[1762235279173,7.54152745,105030.0,105020.0,0.71105947]
[1762235279599,7.54152745,105030.0,105020.0,0.70997107]
[1762235280019,7.54152745,105030.0,105020.0,0.69597107]
[1762235280020,7.54052745,105030.0,105020.0,0.69597107]
[1762235280266,7.54052745,105030.0,105020.0,0.68597108]
[1762235280497,7.54252745,105030.0,105020.0,0.13643729]
[1762235280710,7.54252745,105030.0,105020.0,0.03623729]
[1762235280945,7.51501075,105030.0,105020.0,0.02023729]
[1762235281229,7.51501075,105030.0,105020.0,0.22022006]
[1762235281395,7.51601075,105030.0,105020.0,0.0242373]
[1762235281619,7.51601075,105030.0,105020.0,0.07017851]
[1762235281878,7.51501075,105030.0,105020.0,0.02023729]
[1762235282111,7.51601075,105030.0,105020.0,0.32742006]
[1762235282334,7.51601075,105030.0,105020.0,0.35405948]
[1762235282557,7.51601075,105030.0,105020.0,0.05341958]
[1762235282780,7.51601075,105030.0,105020.0,0.02723729]
[1762235283004,7.51601075,105030.0,105020.0,0.02847851]
[1762235283232,7.51601075,105030.0,105020.0,0.01847852]
[1762235283450,7.51601075,105030.0,105020.0,0.00723731]
[1762235283671,7.51501075,105030.0,105020.0,0.00023731]
[1762235283867,7.33535781,105030.0,105020.0,0.00523731]
[1762235284291,7.33435781,105030.0,105020.0,0.00023731]
[1762235284733,7.33435781,105030.0,105020.0,0.00123731]
[1762235285378,7.31635781,105030.0,105020.0,0.00123731]
[1762235286876,7.47985781,105030.0,105020.0,0.00123731]
[1762235287082,7.67985781,105030.0,105020.0,0.00123731]
[1762235287287,8.01985781,105030.0,105020.0,0.00123731]
[1762235287914,10.21027959,105030.0,105020.0,0.00123731]
[1762235288146,10.01985781,105030.0,105020.0,0.00023731]
[1762235288563,10.02485781,105030.0,105020.0,0.00123731]
[1762235288753,10.43022942,105030.0,105020.0,0.00123731]
[1762235288967,10.25341621,105030.0,105020.0,0.00123731]
[1762235289172,10.28959849,105030.0,105020.0,0.00123731]
[1762235289433,10.06299443,105030.0,105020.0,0.00123731]
[1762235289611,10.06299443,105030.0,105020.0,0.00025775]
[1762235289612,9.66299443,105030.0,105020.0,0.00025775]
[1762235289844,9.86299443,105030.0,105020.0,0.00025775]
[1762235290091,9.86299443,105030.0,105000.0,15.72852912]
[1762235290092,2.0,105010.0,105000.0,15.72852912]
[1762235290358,0.08948,105010.0,105000.0,15.72852912]
[1762235290615,0.75165725,105010.0,105000.0,15.72852912]
[1762235290840,2.72785,105010.0,105000.0,15.72852912]
[1762235291268,2.72785,105010.0,105000.0,15.72952912]
[1762235291503,2.72985,105010.0,105000.0,15.72952912]
[1762235291733,0.72985,105010.0,105000.0,15.72952912]
[1762235291991,0.52985,105010.0,105000.0,15.72952912]
[1762235292223,0.43148,105010.0,105000.0,15.72952912]
[1762235292444,0.002,105010.0,105000.0,15.72952912]
[1762235293091,0.18930725,105010.0,105000.0,15.72952912]
[1762235293318,0.002,105010.0,105000.0,15.82410518]
[1762235294198,0.002,105010.0,105000.0,15.72952912]
[1762235295290,0.09058725,105010.0,105000.0,15.72952912]
[1762235295501,0.18529725,105010.0,105000.0,15.72952912]
[1762235295713,2.70149,105010.0,105000.0,15.72952912]
[1762235295966,0.70149,105010.0,105000.0,15.73000384]
[1762235296171,0.70149,105010.0,105000.0,15.8245799]
[1762235296409,2.70149,105010.0,105000.0,15.73000384]
[1762235296624,3.09194805,105010.0,105000.0,15.73000384]
[1762235296837,0.342,105010.0,105000.0,15.73000384]
[1762235297055,2.70149,105010.0,105000.0,15.73000384]
[1762235297298,2.89194805,105010.0,105000.0,15.73000384]
[1762235297511,2.89194805,105010.0,105000.0,15.72118782]
[1762235297744,2.92813033,105010.0,105000.0,14.57454208]
[1762235297963,2.92813033,105010.0,105000.0,14.52615254]
[1762235298176,2.92313033,105010.0,105000.0,14.52615254]
[1762235298614,2.93313032,105010.0,105000.0,12.61711011]
[1762235298837,2.94950058,105010.0,105000.0,12.61711011]
[1762235299048,2.99311808,105010.0,105000.0,12.39963467]
[1762235299270,2.99311808,105010.0,105000.0,12.29139695]
[1762235299486,3.00111808,105010.0,105000.0,12.0960061]
[1762235299931,3.04095679,105010.0,105000.0,11.30599316]
[1762235300139,3.05395679,105010.0,105000.0,10.35013834]
[1762235300353,3.06476529,105010.0,105000.0,9.85372695]
[1762235300564,3.05176529,105010.0,105000.0,9.83676738]
[1762235300770,3.00373613,105010.0,105000.0,8.23911537]
[1762235300943,3.06877111,105010.0,105000.0,6.89417534]
[1762235301153,3.06877111,105010.0,105000.0,4.59758155]
[1762235301352,3.21487873,105010.0,105000.0,3.3131721]
[1762235301555,3.281646,105010.0,105000.0,1.7615595]
[1762235301777,0.61051245,104980.0,104970.0,0.43839444]
[1762235301941,2.75835473,104980.0,104970.0,0.23857943]
[1762235302145,2.84306474,104980.0,104970.0,0.23857943]
[1762235302353,2.85306473,104980.0,104970.0,0.23857943]
[1762235302818,2.8645905,104980.0,104970.0,0.23394943]
[1762235303014,2.85859051,104980.0,104970.0,0.23494943]
[1762235303222,2.8685905,104980.0,104970.0,0.21094943]
[1762235303601,3.2085905,104980.0,104970.0,0.21094943]
[1762235303798,3.2045905,104980.0,104970.0,0.20994943]
[1762235304006,3.2135905,104980.0,104970.0,0.21194943]
[1762235304220,3.05151104,104960.0,104950.0,0.01178924]
[1762235304420,3.05099583,104960.0,104950.0,0.01178924]
[1762235304624,3.15475582,104960.0,104950.0,0.01178924]
[1762235305470,3.16475581,104960.0,104950.0,0.01178924]
[1762235305680,3.16475581,104960.0,104850.0,0.12911]
[1762235305681,0.37026121,104860.0,104840.0,0.04696913]
[1762235305891,0.37026121,104860.0,104840.0,0.20884519]
[1762235306101,0.37026121,104860.0,104850.0,0.06141]
[1762235306303,0.37026121,104860.0,104840.0,0.20884519]
[1762235306513,0.37026121,104860.0,104830.0,0.91309953]
[1762235306514,0.28545868,104850.0,104830.0,0.91309953]
[1762235306726,2.40076687,104840.0,104830.0,0.83947953]
[1762235306937,2.56729915,104840.0,104830.0,0.83947953]
[1762235307147,2.37887531,104840.0,104830.0,0.83947953]
[1762235307349,2.54269303,104840.0,104830.0,0.89094722]
[1762235307559,2.54269303,104840.0,104830.0,0.83947953]
[1762235308428,2.57887531,104840.0,104830.0,0.83947953]
[1762235308703,2.54269303,104840.0,104830.0,0.83947953]
[1762235308892,2.88269303,104840.0,104830.0,0.83947953]
[1762235309308,2.90067129,104840.0,104830.0,0.83947953]
[1762235310091,0.16067129,104840.0,104830.0,0.83947953]
[1762235310364,0.06655129,104840.0,104830.0,0.83947953]
[1762235310893,0.01534303,104840.0,104830.0,0.88549953]
[1762235311091,0.01534303,104840.0,104830.0,0.97691953]
[1762235311092,0.003,104840.0,104830.0,0.97691953]
[1762235311735,0.00048418,104850.0,104830.0,0.97691953]
[1762235311947,0.02432776,104850.0,104840.0,0.08942]
[1762235312160,0.00048418,104850.0,104840.0,0.08942]
[1762235312353,0.01803377,104850.0,104840.0,0.08942]
[1762235312604,0.00048418,104850.0,104840.0,0.08942]
[1762235313007,0.00348418,104850.0,104840.0,0.08942]
[1762235313428,0.00048418,104850.0,104840.0,0.08942]
[1762235313615,0.00048418,104850.0,104820.0,0.49223657]
[1762235313616,2.59078508,104830.0,104820.0,0.49223657]
[1762235313836,2.4,104830.0,104820.0,0.49223657]
[1762235313999,0.4,104830.0,104820.0,0.49223657]
[1762235314213,0.2,104840.0,104820.0,0.58365657]
[1762235314833,0.20048418,104850.0,104830.0,0.09142]
[1762235315254,0.00048418,104850.0,104820.0,0.49223657]
[1762235315604,2.09976,104840.0,104820.0,0.49223657]
[1762235315816,2.02384813,104830.0,104820.0,0.49223657]
[1762235316022,0.2,104830.0,104820.0,0.49223657]
[1762235316225,0.42384813,104830.0,104820.0,0.49223657]
[1762235316432,0.00048418,104850.0,104820.0,0.49223657]
[1762235316433,0.40048418,104850.0,104820.0,0.49223657]
[1762235316644,2.0,104830.0,104820.0,0.49223657]
[1762235316854,2.2,104830.0,104820.0,0.49223657]
[1762235317084,2.49976,104830.0,104820.0,0.49223657]
[1762235318442,2.51473092,104830.0,104820.0,0.49223657]
[1762235318978,2.51473092,104830.0,104820.0,0.49651679]
[1762235319432,2.705516,104830.0,104820.0,0.40652706]
[1762235319658,2.51473092,104830.0,104820.0,0.40652706]
[1762235319888,0.2,104750.0,104740.0,0.0004783]
[1762235320145,0.2,104750.0,104700.0,0.0250923]
[1762235320146,0.02332,104720.0,104700.0,0.0250923]
[1762235320356,2.0,104720.0,104700.0,0.1165123]
[1762235320838,2.0,104720.0,104700.0,0.0250923]
[1762235320839,2.0,104710.0,104700.0,0.0250923]
[1762235321052,0.00048299,104710.0,104700.0,0.0250923]
[1762235321265,0.02435845,104710.0,104700.0,0.0200923]
[1762235321482,0.02435845,104710.0,104700.0,0.1115123]
[1762235321690,0.00048299,104710.0,104700.0,0.1115123]
[1762235322103,2.99e-06,104710.0,104700.0,0.1115123]
[1762235322308,0.02386862,104740.0,104700.0,0.1115123]
[1762235322517,0.22332,104760.0,104700.0,0.11156087]
[1762235322791,0.30014485,104770.0,104740.0,0.04602]
[1762235323019,0.21497,104770.0,104740.0,0.04602]